bitfinex/quotes_SOLUSD_20240808
["timestamp","ask_amount","ask_price","bid_price","bid_amount"]
[1723123039711,6.3351,157.85,157.7,1.26751201]
[1723123039896,0.5,157.84,157.71,7.80920051]
[1723123040102,38.38,157.86,157.71,9.07671797]
[1723123040310,38.38,157.86,157.72,20.0]
[1723123040506,38.38,157.86,157.73,7.80920051]
[1723123040700,38.38,157.86,157.72,20.0]
[1723123040701,6.8352,157.85,157.72,20.0]
[1723123040899,44.7158,157.84,157.69,29.07669557]
[1723123041124,38.38,157.84,157.7,7.80920051]
[1723123041330,38.88,157.83,157.7,7.80920051]
[1723123041627,38.38,157.83,157.71,1.26783421]
[1723123041796,38.38,157.83,157.7,7.80920051]
[1723123041797,0.5,157.82,157.7,7.80920051]
[1723123041993,6.62568317,157.84,157.7,7.80920051]
[1723123042214,6.3382,157.78,157.68,6.0012]
[1723123042421,0.5,157.77,157.68,6.0012]
[1723123042594,0.17,157.76,157.68,6.0012]
[1723123042804,0.17,157.76,157.68,7.26944382]
[1723123043005,0.17,157.76,157.68,6.0012]
[1723123043323,0.17,157.76,157.68,0.0012]
[1723123043718,0.67,157.76,157.61,16.2595]
[1723123043934,6.3398,157.74,157.61,16.2595]
[1723123044141,0.34,157.73,157.61,16.2595]
[1723123044306,0.34,157.73,157.61,17.5279709]
[1723123044630,18.44809162,157.81,157.61,17.5279709]
[1723123044805,6.3384,157.77,157.61,17.5279709]
[1723123045012,45.17,157.76,157.61,17.5279709]
[1723123045233,0.17,157.75,157.61,16.2595]
[1723123045535,51.5092,157.75,157.61,16.2595]
[1723123045717,6.3399,157.73,157.61,16.2595]
[1723123045922,0.17,157.72,157.62,1.26857484]
[1723123046331,0.17,157.72,157.62,7.85877484]
[1723123046538,6.3434,157.65,157.57,6.2964]
[1723123046714,0.67,157.72,157.55,15.5875]
[1723123046715,6.3442,157.63,157.55,15.5875]
[1723123046922,0.34,157.62,157.49,15.5875]
[1723123047129,0.5,157.61,157.49,15.5875]
[1723123047432,0.34,157.6,157.49,15.5875]
[1723123047636,6.3476,157.54,157.47,6.2964]
[1723123047807,0.67,157.53,157.43,16.6546]
[1723123048012,0.67,157.53,157.41,12.79445644]
[1723123048013,0.17,157.52,157.41,6.1584]
[1723123048245,0.17,157.53,157.41,6.1584]
[1723123048438,6.3471,157.56,157.42,1.26990866]
[1723123048729,0.17,157.55,157.42,1.26990866]
[1723123049035,12.403,157.61,157.42,1.26990866]
[1723123049226,0.17,157.6,157.42,21.26990866]
[1723123049538,0.17,157.6,157.44,42.73]
[1723123049720,6.2209,157.67,157.46,16.1005]
[1723123049922,6.2209,157.67,157.47,21.26945537]
[1723123050131,6.3439,157.63,157.47,21.26945537]
[1723123050445,44.6009,157.67,157.47,20.0]
[1723123050616,6.3461,157.58,157.46,16.1005]
[1723123050817,0.5,157.57,157.46,16.1005]
[1723123051134,6.3464,157.57,157.41,7.42843345]
[1723123051320,0.17,157.56,157.41,7.42843345]
[1723123051508,0.17,157.55,157.41,6.1584]
[1723123051750,0.17,157.55,157.42,1.27000623]
[1723123052051,6.3448,157.61,157.42,1.27000623]
[1723123052226,45.17,157.6,157.42,21.27000623]
[1723123052414,45.17,157.6,157.42,1.27000623]
[1723123052615,6.3456,157.59,157.42,1.27000623]
[1723123052825,6.63503661,157.63,157.44,62.73]
[1723123053030,16.2097,157.7,157.47,20.0]
[1723123053320,12.97549642,157.67,157.5,21.7661]
[1723123053527,6.3429,157.66,157.51,1.26912368]
[1723123053837,0.5,157.65,157.5,21.7661]
[1723123054033,0.5,157.67,157.5,21.7661]
[1723123054236,6.3432,157.65,157.5,21.7661]
[1723123054413,6.63222519,157.68,157.51,1.2692878]
[1723123054615,6.3411,157.7,157.51,66.2692878]
[1723123054842,6.6155,157.73,157.52,42.73]
[1723123055035,0.5,157.72,157.53,66.2688043]
[1723123055220,6.3438,157.64,157.5,41.7661]
[1723123055423,38.38,157.69,157.5,21.7661]
[1723123055631,6.3428,157.66,157.51,1.26928789]
[1723123055833,6.3438,157.64,157.5,23.03523513]
[1723123056040,6.5132,157.65,157.5,21.7661]
[1723123056339,0.17,157.64,157.51,1.26916723]
[1723123056634,0.17,157.65,157.51,1.26916723]
[1723123056635,0.34,157.65,157.51,1.26916723]
[1723123056838,0.5,157.64,157.5,21.7661]
[1723123057039,6.3455,157.59,157.5,21.7661]
[1723123057242,0.17,157.63,157.51,1.26958686]
[1723123057538,42.73,157.72,157.51,1.26910257]
[1723123057840,6.3424,157.67,157.51,1.26910257]
[1723123058038,0.5,157.72,157.51,1.26910257]
[1723123058221,12.97075931,157.73,157.53,42.3741]
[1723123058427,6.63045931,157.73,157.56,42.73]
[1723123058761,6.63045931,157.73,157.57,1.26843695]
[1723123058951,6.63045931,157.73,157.58,1.26863483]
[1723123059154,6.3395,157.74,157.58,1.26863483]
[1723123059319,6.62976087,157.75,157.58,1.26863483]
[1723123059945,6.62976087,157.75,157.58,46.26863483]
[1723123060141,6.3398,157.74,157.58,46.26863483]
[1723123060440,6.3395,157.75,157.59,0.17]
[1723123060641,6.3395,157.75,157.6,1.2682396]
[1723123060823,0.5,157.76,157.6,1.26834087]
[1723123061024,6.3399,157.73,157.61,1.26837455]
[1723123061249,6.62855733,157.77,157.62,22.4205]
[1723123061422,6.2323,157.82,157.63,1.26802519]
[1723123061625,6.339,157.76,157.63,1.26802519]
[1723123061820,6.3383,157.77,157.63,1.26802519]
[1723123062047,0.5,157.76,157.63,7.37965327]
[1723123062238,6.3415,157.69,157.62,22.4205]
[1723123062418,6.3416,157.69,157.62,22.4205]
[1723123062746,6.62827603,157.76,157.62,22.4205]
[1723123062930,6.62827603,157.76,157.63,1.2683206]
[1723123063329,6.3397,157.74,157.62,22.4205]
[1723123063532,45.00847873,157.78,157.62,23.6886139]
[1723123064440,6.3384,157.77,157.63,1.26812752]
[1723123064627,6.3372,157.8,157.64,0.17]
[1723123064830,6.3368,157.81,157.65,21.26781132]
[1723123065033,6.3364,157.82,157.67,6.0892]
[1723123065242,0.5,157.81,157.67,6.0892]
[1723123065420,6.3372,157.8,157.67,6.0892]
[1723123065628,45.506258,157.84,157.67,6.0892]
[1723123065920,38.38,157.82,157.67,6.0892]
[1723123066125,38.88,157.82,157.67,6.0892]
[1723123066429,6.3383,157.78,157.67,6.0892]
[1723123066729,38.88,157.82,157.67,6.0892]
[1723123066730,54.223,157.8,157.67,6.0892]
[1723123066937,6.3392,157.75,157.67,6.0892]
[1723123067337,0.67,157.74,157.67,6.0892]
[1723123067927,7.0098,157.74,157.67,6.0892]
[1723123068149,38.38,157.79,157.67,6.0892]
[1723123068331,0.34,157.78,157.68,1.26826509]
[1723123068530,6.3388,157.76,157.67,6.0892]
[1723123068825,6.3392,157.75,157.67,6.0892]
[1723123069044,6.3395,157.74,157.67,6.0892]
[1723123069244,6.3396,157.74,157.67,6.0892]
[1723123069729,0.5,157.73,157.67,6.0892]
[1723123069930,0.17,157.72,157.67,6.0892]
[1723123070240,38.38,157.8,157.67,6.0892]
[1723123070647,6.3383,157.77,157.67,6.0892]
[1723123070946,38.88,157.8,157.67,6.0892]
[1723123071132,38.38,157.8,157.67,6.0892]
[1723123071443,6.3377,157.79,157.67,6.0892]
[1723123071655,6.3372,157.8,157.67,6.0892]
[1723123071826,6.3363,157.82,157.68,1.26782167]
[1723123072026,45.006258,157.84,157.69,15.8185]
[1723123072027,6.3367,157.81,157.69,15.8185]
[1723123072226,38.38,157.82,157.69,15.8185]
[1723123072423,6.3383,157.77,157.69,15.8185]
[1723123072641,0.5,157.8,157.69,15.8185]
[1723123073454,6.8371,157.8,157.69,15.8185]
[1723123073631,6.3367,157.81,157.69,15.8185]
[1723123074028,0.5,157.82,157.69,15.8185]
[1723123074247,6.3371,157.8,157.69,15.8185]
[1723123074448,6.5076,157.79,157.69,15.8185]
[1723123074636,6.3376,157.79,157.69,15.8185]
[1723123075530,6.5072,157.8,157.69,15.8185]
[1723123075731,0.17,157.79,157.69,15.8185]
[1723123075957,0.17,157.8,157.69,15.8185]
[1723123076257,6.338,157.78,157.69,15.8185]
[1723123076455,6.5076,157.79,157.69,15.8185]
[1723123076752,6.3376,157.79,157.69,15.75600064]
[1723123076954,0.17,157.78,157.69,15.75600064]
[1723123077141,0.34,157.81,157.69,15.75600064]
[1723123077458,0.5,157.82,157.69,15.75600064]
[1723123078235,6.626258,157.84,157.69,15.75600064]
[1723123078447,12.961758,157.84,157.7,1.26748365]
[1723123078754,12.961758,157.84,157.69,15.75600064]
[1723123078755,13.461758,157.84,157.69,15.75600064]
[1723123079570,12.961758,157.84,157.69,15.75600064]
[1723123079942,6.836,157.83,157.69,15.75600064]
[1723123080149,6.338,157.78,157.69,15.75600064]
[1723123080342,38.38,157.8,157.69,15.75600064]
[1723123080643,6.3382,157.78,157.69,15.75600064]
[1723123080847,0.34,157.77,157.69,15.75600064]
[1723123081070,7.12651393,157.82,157.69,15.75600064]
[1723123081355,0.5,157.82,157.69,15.75600064]
[1723123081738,6.8364,157.82,157.69,15.75600064]
[1723123081938,0.5,157.82,157.69,15.75600064]
[1723123082138,6.3374,157.8,157.69,15.75600064]
[1723123082448,6.3368,157.81,157.69,15.75600064]
[1723123082658,38.38,157.84,157.69,15.75600064]
[1723123082867,38.38,157.82,157.69,15.75600064]
[1723123083154,0.5,157.81,157.69,15.75600064]
[1723123083333,6.3406,157.72,157.67,6.0892]
[1723123083533,6.3408,157.71,157.67,6.0892]
[1723123083744,6.3408,157.71,157.63,15.6085]
[1723123083745,6.3425,157.67,157.63,22.0954]
[1723123083960,0.5,157.66,157.63,22.0954]
[1723123084160,38.38,157.71,157.59,6.4869]
[1723123084467,0.34,157.7,157.6,1.2686787]
[1723123084633,0.34,157.7,157.59,6.4869]
[1723123084832,0.17,157.69,157.6,1.26872223]
[1723123085139,42.73,157.79,157.6,1.26872223]
[1723123085140,58.5741,157.79,157.6,1.26872223]
[1723123085335,45.67,157.78,157.6,1.26872223]
[1723123085560,38.38,157.77,157.6,1.26872223]
[1723123085735,45.0,157.78,157.6,1.26872223]
[1723123085935,6.3374,157.8,157.62,21.5761]
[1723123086153,6.3374,157.8,157.63,1.26793849]
[1723123086353,6.3375,157.79,157.63,66.26793849]
[1723123086554,38.38,157.79,157.63,21.26793849]
[1723123086738,6.3386,157.77,157.63,20.0]
[1723123087066,0.5,157.78,157.63,20.0]
[1723123087261,6.3404,157.72,157.62,21.5761]
[1723123087473,0.67,157.71,157.62,21.5761]
[1723123087777,6.3402,157.73,157.62,21.5761]
[1723123087949,38.38,157.76,157.62,21.5761]
[1723123088156,6.5091,157.75,157.62,21.5761]
[1723123088463,0.17,157.74,157.62,21.5761]
[1723123088666,0.17,157.75,157.63,1.26827616]
[1723123088868,49.34143228,157.92,157.64,1.26809145]
[1723123088869,38.38,157.78,157.64,1.26809145]
[1723123089169,38.38,157.81,157.63,1.2681841]
[1723123089473,44.7168,157.81,157.65,16.5704]
[1723123089643,6.3372,157.8,157.66,21.26765486]
[1723123089843,0.5,157.83,157.66,20.0]
[1723123090075,6.3364,157.82,157.67,1.26777422]
[1723123090283,38.38,157.84,157.68,6.3403]
[1723123090284,0.5,157.81,157.68,6.3403]
[1723123090567,0.5,157.84,157.7,16.4156]
[1723123090749,6.62503209,157.85,157.71,21.26750596]
[1723123090949,45.50503209,157.85,157.71,20.0]
[1723123091143,38.88,157.85,157.71,20.0]
[1723123091340,38.88,157.84,157.71,20.0]
[1723123091802,6.3367,157.81,157.7,16.4156]
[1723123091947,6.62494179,157.87,157.7,16.4156]
[1723123091948,38.88,157.8,157.7,16.4156]
[1723123092374,6.3376,157.79,157.7,16.4156]
[1723123092670,6.3395,157.75,157.7,16.4156]
[1723123092850,84.22,157.74,157.65,15.2143]
[1723123093172,39.05,157.74,157.65,15.2143]
[1723123093377,6.3415,157.7,157.65,15.2143]
[1723123093668,0.17,157.73,157.65,15.2143]
[1723123093874,38.55,157.74,157.65,15.2143]
[1723123093875,0.17,157.74,157.65,16.48264312]
[1723123094180,6.3379,157.78,157.66,1.26823193]
[1723123094370,0.17,157.77,157.66,1.26823193]
[1723123094554,6.5083,157.77,157.66,1.26823193]
[1723123094750,0.17,157.77,157.65,16.48238045]
[1723123095364,45.17,157.78,157.65,16.48238045]
[1723123095560,0.5,157.77,157.65,15.2143]
[1723123095757,6.3396,157.74,157.65,15.2143]
[1723123095972,6.5087,157.76,157.65,15.2143]
[1723123096156,32.5203672,157.88,157.65,16.48247453]
[1723123096364,15.838,157.85,157.66,6.2087]
[1723123096565,6.3363,157.82,157.67,1.26772764]
[1723123096863,0.5,157.84,157.67,1.26772764]
[1723123097076,38.38,157.86,157.67,20.0]
[1723123097077,0.5,157.83,157.67,20.0]
[1723123097386,1.3497672,157.88,157.69,22.6541]
[1723123097588,1.3497672,157.88,157.7,20.0]
[1723123097758,6.3359,157.83,157.7,20.0]
[1723123098080,6.3355,157.84,157.7,20.0]
[1723123098592,6.3352,157.85,157.7,20.0]
[1723123098762,6.3347,157.86,157.71,1.26750369]
[1723123098979,6.3351,157.85,157.71,1.26750369]
[1723123099165,6.3364,157.82,157.69,22.6541]
[1723123099368,0.5,157.81,157.69,22.6541]
[1723123099586,38.88,157.84,157.69,22.6541]
[1723123099784,0.5,157.83,157.69,22.6541]
[1723123100183,38.72,157.82,157.69,22.6541]
[1723123100370,0.34,157.82,157.69,22.6541]
[1723123100692,6.8359,157.83,157.69,22.6541]
[1723123100892,0.5,157.82,157.69,22.6541]
[1723123101074,6.3359,157.83,157.69,22.6541]
[1723123101259,45.5,157.82,157.69,22.6541]
[1723123101464,0.5,157.81,157.69,22.6541]
[1723123101684,6.3371,157.8,157.69,22.6541]
[1723123101884,83.38,157.82,157.69,22.6541]
[1723123102090,6.3375,157.79,157.69,22.6541]
[1723123102389,38.38,157.82,157.69,22.6541]
[1723123102593,6.3362,157.83,157.69,22.6541]
[1723123102771,0.67,157.82,157.69,22.6541]
[1723123103167,0.17,157.82,157.69,22.6541]
[1723123103367,6.3371,157.81,157.69,22.6541]
[1723123103674,38.88,157.83,157.69,22.6541]
[1723123104487,54.2216,157.82,157.69,22.6541]
[1723123104790,0.67,157.81,157.69,22.6541]
[1723123104999,6.3366,157.82,157.69,22.6541]
[1723123105298,38.38,157.84,157.69,22.6541]
[1723123105519,38.88,157.87,157.69,23.92171708]
[1723123105806,6.3355,157.84,157.7,45.0]
[1723123105975,0.5,157.86,157.71,1.26745104]
[1723123106170,6.3362,157.83,157.7,45.0]
[1723123106377,23.30967311,157.88,157.73,20.0]
[1723123106378,7.47457311,157.88,157.73,20.0]
[1723123106594,0.8497672,157.88,157.74,72.78693939]
[1723123106794,0.8497672,157.88,157.75,15.1314]
[1723123107105,0.8497672,157.88,157.76,1.26699932]
[1723123107406,0.8497672,157.88,157.77,1.26704204]
[1723123107705,0.8497672,157.88,157.76,1.26699982]
[1723123108002,7.1837672,157.88,157.75,16.39840197]
[1723123108376,7.1839672,157.88,157.75,16.39840197]
[1723123108682,0.8497672,157.88,157.75,16.39840197]
[1723123109098,0.8497672,157.88,157.76,65.0407]
[1723123109307,6.3318,157.94,157.8,20.0]
[1723123109600,0.5,157.93,157.79,22.3107]
[1723123109802,6.3342,157.88,157.79,22.3107]
[1723123110099,38.38,157.93,157.79,22.3107]
[1723123110291,54.2123,157.91,157.8,1.26718282]
[1723123110600,54.2123,157.91,157.79,22.3107]
[1723123110601,0.5,157.96,157.79,22.3107]
[1723123110816,6.3307,157.96,157.8,21.26708594]
[1723123111101,6.3324,157.92,157.8,21.26708594]
[1723123111274,6.3302,157.98,157.81,22.3328]
[1723123111488,6.62103353,157.99,157.82,64.16649051]
[1723123111710,6.62103353,157.99,157.84,21.4662]
[1723123111711,6.3304,157.97,157.84,21.4662]
[1723123111892,6.3304,157.97,157.85,21.26631738]
[1723123112096,6.3299,157.98,157.85,21.26631738]
[1723123112305,0.8497672,158.04,157.87,15.5746]
[1723123112615,0.8497672,158.04,157.95,6.4449]
[1723123112814,0.8497672,158.04,157.95,7.54686073]
[1723123112997,0.8497672,158.04,157.95,6.4449]
[1723123113205,7.1773672,158.04,157.95,6.4449]
[1723123113399,0.8497672,158.04,157.95,6.4449]
[1723123113596,7.1772672,158.04,157.95,6.4449]
[1723123114023,0.8497672,158.04,157.96,1.23610358]
[1723123114316,0.8497672,158.04,157.95,6.4449]
[1723123114825,6.3256,158.09,157.96,61.41059595]
[1723123115029,22.42569581,158.13,157.96,16.41059595]
[1723123115411,6.326,158.08,157.96,16.41059595]
[1723123115605,6.3264,158.07,157.96,16.41059595]
[1723123115821,15.8131,158.1,157.96,15.1454]
[1723123116116,6.3265,158.07,157.96,16.41115263]
[1723123116297,6.61499581,158.13,157.96,16.41115263]
[1723123117227,7.11499581,158.13,157.96,16.41115263]
[1723123117404,6.3267,158.06,157.96,16.41115263]
[1723123117593,6.3258,158.09,157.96,16.41115263]
[1723123117807,7.11499581,158.13,157.96,16.41115263]
[1723123118127,15.8108,158.12,157.96,15.1454]
[1723123118331,15.8108,158.12,157.96,16.41098647]
[1723123118332,15.8139,158.09,157.96,16.41098647]
[1723123118619,16.3123,158.11,157.96,15.1454]
[1723123118800,0.67,158.1,157.96,15.1454]
[1723123119009,6.3259,158.08,157.97,1.26581114]
[1723123119207,6.4951,158.1,157.97,1.26581114]
[1723123119402,0.17,158.11,157.96,16.41088426]
[1723123119634,0.5,158.11,157.96,15.1454]
[1723123119820,6.3271,158.05,157.96,15.1454]
[1723123120028,0.17,158.1,157.97,1.26572054]
[1723123120405,0.17,158.11,157.96,15.1454]
[1723123120627,6.3267,158.06,157.96,15.1454]
[1723123121012,6.3273,158.05,157.96,15.1454]
[1723123121206,0.17,158.07,157.96,15.1454]
[1723123121430,45.17,158.07,157.96,15.1454]
[1723123121726,0.17,158.06,157.96,15.1454]
[1723123121922,15.9875,158.06,157.96,15.1454]
[1723123122122,6.3307,157.96,157.95,6.4449]
[1723123122427,6.3294,158.0,157.9,21.1939]
[1723123122647,0.17,158.01,157.9,21.1939]
[1723123122936,0.34,158.01,157.9,21.1939]
[1723123123113,0.5,158.0,157.9,21.1939]
[1723123123321,0.34,157.99,157.9,21.1939]
[1723123123539,6.333,157.91,157.82,21.436]
[1723123123712,6.8332,157.9,157.82,21.436]
[1723123123909,6.3332,157.9,157.82,21.436]
[1723123124118,0.17,157.92,157.83,1.26698258]
[1723123124433,6.3327,157.91,157.82,21.436]
[1723123124634,6.3331,157.9,157.82,21.436]
[1723123124807,0.34,157.91,157.82,21.436]
[1723123125011,6.3347,157.86,157.82,21.436]
[1723123125313,0.17,157.9,157.74,6.61477801]
[1723123125314,0.17,157.85,157.74,21.5841]
[1723123125642,0.5,157.88,157.74,21.5841]
[1723123125806,0.5,157.87,157.74,21.5841]
[1723123126235,6.3363,157.82,157.74,21.5841]
[1723123126438,58.564,157.89,157.74,21.5841]
[1723123126439,6.3359,157.83,157.74,21.5841]
[1723123126602,38.38,157.82,157.74,21.5841]
[1723123126810,38.38,157.82,157.68,6.62549041]
[1723123126811,6.3399,157.74,157.68,21.7095]
[1723123127031,6.3404,157.72,157.68,21.7095]
[1723123127645,38.38,157.76,157.68,21.7095]
[1723123127817,6.3396,157.74,157.68,21.7095]
[1723123128147,0.17,157.75,157.68,21.7095]
[1723123128303,0.17,157.78,157.68,21.7095]
[1723123128304,0.17,157.78,157.69,1.2681415]
[1723123128507,6.5083,157.78,157.69,1.2681415]
[1723123128706,6.5081,157.78,157.69,1.26796227]
[1723123128950,0.17,157.77,157.68,21.7095]
[1723123129735,6.3396,157.74,157.68,21.7095]
[1723123129951,0.17,157.73,157.68,21.7095]
[1723123130175,0.67,157.75,157.64,0.8497672]
[1723123130446,6.3412,157.7,157.64,0.8497672]
[1723123130657,38.55,157.74,157.64,0.8497672]
[1723123130944,38.38,157.71,157.64,0.8497672]
[1723123131131,6.3424,157.67,157.64,0.8497672]
[1723123131444,6.5119,157.68,157.64,0.8497672]
[1723123131929,0.17,157.67,157.64,0.8497672]
[1723123132125,6.3419,157.69,157.64,0.8497672]
[1723123132343,0.84,157.68,157.64,0.8497672]
[1723123132553,6.3431,157.65,157.64,0.8497672]
[1723123132839,0.17,157.65,157.64,0.8497672]
[1723123133029,6.3424,157.67,157.64,0.8497672]
[1723123133224,83.38,157.73,157.64,0.8497672]
[1723123133444,38.38,157.73,157.64,0.8497672]
[1723123133650,38.38,157.76,157.64,0.8497672]
[1723123133855,16.3487,157.75,157.64,0.8497672]
[1723123134076,6.3419,157.69,157.64,0.8497672]
[1723123134250,38.38,157.73,157.64,0.8497672]
[1723123134453,6.0753,157.82,157.64,0.8497672]
[1723123134651,6.3383,157.77,157.64,0.8497672]
[1723123135175,45.40191344,157.84,157.67,6.2971]
[1723123135484,38.38,157.83,157.68,1.26795203]
[1723123135763,6.3372,157.8,157.68,1.26795203]
[1723123135962,0.5,157.79,157.67,6.2971]
[1723123136152,45.50655699,157.83,157.67,6.2971]
[1723123136352,6.6533,157.88,157.68,1.26785777]
[1723123136353,38.38,157.85,157.68,1.26785777]
[1723123136563,38.38,157.83,157.68,21.26785777]
[1723123136762,0.5,157.82,157.68,20.0]
[1723123136947,6.3376,157.79,157.68,20.0]
[1723123137151,6.3371,157.8,157.68,20.0]
[1723123137696,6.3371,157.8,157.69,1.26789296]
[1723123137697,6.3374,157.8,157.69,1.26789296]
[1723123137855,44.7168,157.81,157.69,1.26789296]
[1723123138042,38.38,157.81,157.69,1.26789296]
[1723123138245,44.7169,157.81,157.69,1.26789296]
[1723123138547,6.3373,157.8,157.69,1.26789296]
[1723123138747,15.8376,157.86,157.69,1.26789296]
[1723123138941,6.3354,157.85,157.69,1.26789296]
[1723123139160,6.62503268,157.87,157.69,21.26789296]
[1723123139469,19.05,157.9,157.7,20.0]
[1723123139645,6.3358,157.84,157.71,1.26761676]
[1723123140174,38.38,157.85,157.71,1.26761676]
[1723123140669,38.88,157.84,157.68,20.0]
[1723123140975,38.38,157.87,157.68,21.26774598]
[1723123141185,38.38,157.87,157.69,45.0]
[1723123141486,38.38,157.87,157.7,21.26741807]
[1723123141646,38.38,157.85,157.7,21.26741807]
[1723123141847,38.38,157.83,157.7,20.0]
[1723123142065,44.716,157.83,157.68,21.26780302]
[1723123142560,44.7159,157.83,157.68,21.26780302]
[1723123142748,6.337,157.81,157.68,20.0]
[1723123142954,84.05,157.82,157.67,6.2971]
[1723123142955,38.38,157.78,157.67,6.2971]
[1723123143167,0.84,157.77,157.67,6.2971]
[1723123143469,6.6783,157.77,157.67,6.2971]
[1723123143671,0.34,157.77,157.67,6.2971]
[1723123143856,0.17,157.77,157.68,1.2680257]
[1723123144059,2.64704532,157.87,157.68,1.2680257]
[1723123144260,6.3352,157.85,157.68,1.2680257]
[1723123144583,6.62535384,157.87,157.68,1.26772724]
[1723123144777,6.62535384,157.87,157.67,6.2971]
[1723123144778,38.38,157.83,157.67,6.2971]
[1723123145086,44.7175,157.79,157.67,6.2971]
[1723123145260,45.0,157.78,157.68,1.2681197]
[1723123145456,0.17,157.78,157.68,1.2681197]
[1723123145758,0.17,157.78,157.67,7.56510388]
[1723123145955,0.5,157.86,157.68,1.26785507]
[1723123146169,0.5,157.85,157.68,20.0]
[1723123146676,6.62535384,157.87,157.68,21.26793732]
[1723123146982,6.3348,157.86,157.68,21.26793732]
[1723123147188,15.8323,157.91,157.68,21.26793732]
[1723123147484,6.3336,157.89,157.71,6.3258]
[1723123147691,6.3339,157.88,157.72,21.26740441]
[1723123147984,38.38,157.88,157.72,21.26740441]
[1723123148158,38.38,157.89,157.73,16.3677]
[1723123148480,0.5,157.89,157.75,6.5734]
[1723123149004,38.38,157.87,157.75,6.5734]
[1723123149189,38.38,157.85,157.75,6.5734]
[1723123149380,38.38,157.82,157.75,6.5734]
[1723123149569,38.38,157.81,157.75,6.5734]
[1723123149998,6.3382,157.78,157.73,16.3677]
[1723123150206,0.84,157.77,157.73,16.3677]
[1723123150385,37.9985,157.89,157.73,16.3677]
[1723123150386,43.23,157.88,157.73,16.3677]
[1723123150588,0.5,157.88,157.73,16.3677]
[1723123150903,31.6604,157.93,157.74,1.26744083]
[1723123151069,35.0882,157.99,157.75,6.4311]
[1723123151070,15.8271,157.96,157.75,6.4311]
[1723123151275,6.3331,157.9,157.76,20.0]
[1723123151475,38.38,157.92,157.76,20.0]
[1723123151671,38.38,157.92,157.77,1.26712406]
[1723123151891,38.38,157.92,157.77,46.26712406]
[1723123152099,42.73,157.98,157.78,21.5486]
[1723123152419,15.8202,158.03,157.8,6.4311]
[1723123152420,44.7096,157.99,157.8,6.4311]
[1723123152721,38.38,157.97,157.82,15.1175]
[1723123153000,0.5,158.01,157.83,21.26653459]
[1723123153296,0.5,158.01,157.83,21.2664159]
[1723123153479,38.88,158.01,157.83,21.26650836]
[1723123153669,38.38,157.97,157.83,21.26651945]
[1723123153870,6.3307,157.96,157.83,20.0]
[1723123154097,6.331,157.96,157.83,20.0]
[1723123154304,58.5514,158.02,157.82,15.1175]
[1723123154305,0.5,157.95,157.82,15.1175]
[1723123154506,38.38,157.92,157.82,15.1175]
[1723123154708,58.5554,157.98,157.82,15.1175]
[1723123154910,6.3315,157.94,157.82,15.1175]
[1723123155088,6.331,157.96,157.83,1.26691835]
[1723123155296,0.34,157.95,157.83,1.26691835]
[1723123155604,44.71,157.98,157.83,1.26691835]
[1723123155776,6.3303,157.97,157.83,21.26691835]
[1723123155974,61.18488824,158.03,157.84,1.26655992]
[1723123156197,61.18488824,158.03,157.83,21.26656026]
[1723123156378,6.3294,158.0,157.83,21.26656026]
[1723123156597,6.3295,157.99,157.83,21.26656026]
[1723123156801,38.38,158.0,157.83,21.26656026]
[1723123157003,6.3294,158.0,157.84,6.2832]
[1723123157210,61.18488824,158.03,157.85,21.26636531]
[1723123157211,42.73,158.03,157.85,21.26636531]
[1723123157400,6.3286,158.02,157.86,1.26626858]